fUSD/lending_fUSD_20250828
["ID","MTS","AMOUNT","RATE_DAILY","PERIOD"]
[381840849,1756368638748,-2861.03356965,0.000179,2]
[381840851,1756368638760,-359.6744661,0.000179,2]
[381840853,1756368638769,-151.0,0.00017938,2]
[381840855,1756368638779,-151.0,0.00017969,2]
[381840857,1756368638788,-500.0,0.00017973,2]
[381840859,1756368638797,-500.0,0.00017973,2]
[381840861,1756368638807,-400.0,0.00017998,2]
[381840863,1756368638816,-400.0,0.00017998,2]
[381840865,1756368638825,-400.0,0.00017998,2]
[381840867,1756368638836,-400.0,0.00017998,2]
[381840869,1756368638845,-400.0,0.00017998,2]
[381840871,1756368638854,-400.0,0.00017998,2]
[381840873,1756368638863,-400.0,0.00017998,2]
[381840875,1756368638873,-275.45,0.00017998,2]
[381840877,1756368638882,-400.0,0.00017999,2]
[381840879,1756368638891,-1071.31496946,0.00017999,5]
[381840880,1756368638901,-1071.31496946,0.00017999,5]
[381840883,1756368638912,-1071.31496946,0.00017999,5]
[381840885,1756368638921,-1071.31496946,0.00017999,5]
[381840887,1756368638931,-1071.31496946,0.00017999,5]
[381840889,1756368638939,-400.0,0.00017999,2]
[381840891,1756368638948,-400.0,0.00017999,2]
[381840893,1756368638957,-17700.081638,0.00017999,2]
[381840895,1756368638967,-330.39405375,0.00017999,2]
[381840897,1756368638976,-416.20715372,0.00017999,2]
[381840899,1756368638985,-171.67302844,0.00017999,2]
[381840901,1756368638995,-9879.6554351,0.00017999,2]
[381840903,1756368639004,-400.0,0.00017999,2]
[381840926,1756368639216,-400.0,0.00017999,2]
[381840928,1756368639226,-300.48,0.00017999,2]
[381840930,1756368639236,-400.0,0.00017999,2]
[381840932,1756368639245,-349.37,0.00017999,2]
[381840934,1756368639255,-316.0,0.00017999,2]
[381840936,1756368639264,-400.0,0.00017999,2]
[381840938,1756368639273,-400.0,0.00017999,2]
[381840940,1756368639282,-400.0,0.00017999,2]
[381840942,1756368639292,-400.0,0.00017999,2]
[381840944,1756368639301,-400.0,0.00017999,2]
[381840946,1756368639311,-400.0,0.00017999,2]
[381840948,1756368639321,-197.16,0.00017999,2]
[381840950,1756368639330,-400.0,0.00017999,2]
[381840952,1756368639341,-400.0,0.00017999,2]
[381840954,1756368639351,-400.0,0.00017999,2]
[381840956,1756368639360,-400.0,0.00017999,2]
[381840958,1756368639369,-501.62006107,0.00017999,2]
[381840960,1756368639378,-400.0,0.00017999,2]
[381840962,1756368639388,-270.97,0.00017999,2]
[381840964,1756368639397,-210.46,0.00017999,2]
[381840966,1756368639407,-400.0,0.00017999,2]
[381840968,1756368639416,-400.0,0.00017999,2]
[381840970,1756368639426,-224.33,0.00017999,2]
[381840972,1756368639435,-400.0,0.00017999,2]
[381840974,1756368639445,-400.0,0.00017999,2]
[381840976,1756368639454,-444.11,0.00017999,2]
[381840978,1756368639463,-409.23768751,0.00017999,2]
[381840980,1756368639473,-237.11818562,0.00017999,2]
[381840982,1756368639482,-401.81551672,0.00017999,2]
[381840984,1756368639491,-400.0,0.00017999,2]
[381840986,1756368639500,-224.74,0.00017999,2]
[381840988,1756368639510,-400.0,0.00017999,2]
[381840990,1756368639520,-400.0,0.00017999,2]
[381840992,1756368639534,-255.99,0.00017999,2]
[381840994,1756368639544,-207.95,0.00017999,2]
[381840996,1756368639553,-472.9,0.00017999,2]
[381840998,1756368639562,-235.67,0.00017999,2]
[381841000,1756368639573,-164.59,0.00017999,2]
[381841002,1756368639585,-217.81,0.00017999,2]
[381841004,1756368639595,-211.81,0.00017999,2]
[381841006,1756368639605,-316.05,0.00017999,2]
[381841008,1756368639615,-400.0,0.00017999,2]
[381841010,1756368639625,-256.74,0.00017999,2]
[381841012,1756368639635,-400.0,0.00017999,2]
[381841014,1756368639645,-400.0,0.00017999,2]
[381841016,1756368639654,-400.0,0.00017999,2]
[381841018,1756368639664,-400.0,0.00017999,2]
[381841020,1756368639673,-400.0,0.00017999,2]
[381841022,1756368639682,-595.78,0.00017999,2]
[381841024,1756368639691,-400.0,0.00017999,2]
[381841026,1756368639700,-492.63,0.00017999,2]
[381841028,1756368639709,-400.0,0.00017999,2]
[381841030,1756368639719,-400.0,0.00017999,2]
[381841032,1756368639728,-389.3597548,0.00017999,2]
[381841034,1756368639738,-400.0,0.00017999,2]
[381841038,1756368639748,-303.19945479,0.00017999,2]
[381841040,1756368639758,-400.0,0.00017999,2]
[381841042,1756368639767,-2443.37,0.00017999,2]
[381841044,1756368639777,-400.0,0.00017999,2]
[381841046,1756368639788,-400.0,0.00017999,2]
[381841048,1756368639798,-400.0,0.00017999,2]
[381841050,1756368639808,-400.0,0.00017999,2]
[381841052,1756368639817,-400.0,0.00017999,2]
[381841054,1756368639827,-400.0,0.00017999,2]
[381841056,1756368639838,-400.0,0.00017999,2]
[381841058,1756368639848,-400.0,0.00017999,2]
[381841060,1756368639857,-400.0,0.00017999,2]
[381841062,1756368639867,-537.78557504,0.00017999,2]
[381841065,1756368639876,-400.0,0.00017999,2]
[381841067,1756368639886,-400.0,0.00017999,2]
[381841069,1756368639895,-400.0,0.00017999,2]
[381841071,1756368639904,-400.0,0.00017999,2]
[381841073,1756368639914,-155.93,0.00017999,2]
[381841075,1756368639924,-400.0,0.00017999,2]
[381841077,1756368639933,-400.0,0.00017999,2]
[381841079,1756368639943,-400.0,0.00017999,2]
[381841081,1756368639953,-400.0,0.00017999,2]
[381841083,1756368639962,-400.0,0.00017999,2]
[381841085,1756368639971,-400.0,0.00017999,2]
[381841087,1756368639984,-400.0,0.00017999,2]
[381841089,1756368639993,-522.07,0.00017999,2]
[381841091,1756368640003,-400.0,0.00017999,2]
[381841093,1756368640015,-400.0,0.00017999,2]
[381841095,1756368640024,-400.0,0.00017999,2]
[381841097,1756368640034,-400.0,0.00017999,2]
[381841099,1756368640043,-400.0,0.00017999,2]
[381841101,1756368640052,-400.0,0.00017999,2]
[381841103,1756368640061,-400.0,0.00017999,2]
[381841105,1756368640070,-400.0,0.00017999,2]
[381841107,1756368640080,-400.0,0.00017999,2]
[381841109,1756368640090,-400.0,0.00017999,2]
[381841111,1756368640100,-400.0,0.00017999,2]
[381841113,1756368640109,-542.62248529,0.00017999,2]
[381841115,1756368640118,-394.74,0.00017999,2]
[381841117,1756368640128,-666.48,0.00017999,2]
[381841119,1756368640137,-400.0,0.00017999,2]
[381841121,1756368640147,-400.0,0.00017999,2]
[381841123,1756368640156,-400.0,0.00017999,2]
[381841125,1756368640165,-400.0,0.00017999,2]
[381841127,1756368640175,-400.0,0.00017999,2]
[381841129,1756368640184,-201.09,0.00017999,2]
[381841131,1756368640194,-400.0,0.00017999,2]
[381841133,1756368640203,-522.74,0.00017999,2]
[381841135,1756368640212,-356.21,0.00017999,2]
[381841137,1756368640222,-528.62,0.00017999,2]
[381841139,1756368640232,-212.24,0.00017999,2]
[381841141,1756368640242,-453.17,0.00017999,2]
[381841143,1756368640251,-400.0,0.00017999,2]
[381841145,1756368640260,-400.0,0.00017999,2]
[381841147,1756368640269,-504.23,0.00017999,2]
[381841149,1756368640278,-400.0,0.00017999,2]
[381841151,1756368640287,-400.0,0.00017999,2]
[381841153,1756368640296,-545.84,0.00017999,2]
[381841156,1756368640306,-206.39565615,0.00017999,2]
[381841158,1756368640315,-400.0,0.00017999,2]
[381841160,1756368640325,-400.0,0.00017999,2]
[381841162,1756368640334,-400.0,0.00017999,2]
[381841164,1756368640343,-782.21,0.00017999,2]
[381841166,1756368640352,-400.0,0.00017999,2]
[381841168,1756368640361,-1124.78,0.00017999,2]
[381841170,1756368640371,-400.0,0.00017999,2]
[381841171,1756368640380,-1233.07,0.00017999,2]
[381841173,1756368640389,-400.0,0.00017999,2]
[381841175,1756368640398,-255.84928132,0.00017999,2]
[381841177,1756368640407,-491.3,0.00017999,2]
[381841179,1756368640416,-250.59760776,0.00017999,2]
[381841181,1756368640426,-400.0,0.00017999,2]
[381841183,1756368640435,-400.0,0.00017999,2]
[381841185,1756368640444,-532.82,0.00017999,2]
[381841187,1756368640453,-21249.21641046,0.00018,2]
[381841189,1756368640463,-793.26510047,0.00018,2]
[381841191,1756368640472,-515.52599168,0.00018,2]
[381841193,1756368640481,-99440.84408626,0.00018,2]
[381841213,1756368640657,-17493.40605,0.00018,2]
[381841215,1756368640670,-544.33324752,0.00018,2]
[381841218,1756368640681,-8458.57609884,0.00018,2]
[381841225,1756368640744,-2265.2,0.00018,2]
[381841228,1756368640756,-245943.42515598,0.00018,2]
[381841230,1756368640771,-109394.20574072,0.00018,2]
[381841232,1756368640782,-77456.038,0.00018,2]
[381841235,1756368640800,-41039.25650096,0.00018,2]
[381841463,1756368642982,-1003.41372954,0.00018,2]
[381841471,1756368643057,-538.69,0.00018,2]
[381841489,1756368643247,-7427.88981678,0.00018,2]
[381841492,1756368643258,-2115.30748298,0.00018,2]
[381841753,1756368645983,-400.0,0.00017999,2]
[381841755,1756368645993,-749.62,0.00017999,2]
[381841757,1756368646002,-39.92112964,0.00018,2]
[381841759,1756368646013,-12983.86950048,0.00018,2]
[381841760,1756368646025,-51581.76493735,0.00018,2]
[381841761,1756368646069,-15014.8882512,0.00018,2]
[381841783,1756368646276,-21596.83645644,0.00018,2]
[381841785,1756368646289,-615.3,0.00018,2]
[381843870,1756368667167,758.44310782,0.0002455,120]
[381846690,1756368730438,-242.78574349,0.00016261,2]
[381846691,1756368740137,-500.0,0.00016261,2]
[381846692,1756368747710,-150.0,0.0001626,3]
[381846693,1756368747762,-200.0,0.00016261,2]
[381846710,1756368755959,-500.0,0.00016261,2]
[381846721,1756368774945,-237.12808635,0.00013699,2]
[381846722,1756368775254,-262.87191365,0.00013699,2]
[381846947,1756368882416,-150.0,0.00013699,2]
[381847113,1756369204394,-210.45780673,0.00015068,3]
[381847115,1756369209117,-11.3,0.00013699,2]
[381847116,1756369209142,-224.74605735,0.00015068,3]
[381847117,1756369211559,-150.0,0.00014199,3]
[381847118,1756369211586,-350.0,0.00015068,3]
[381847119,1756369212763,-150.0,0.00014699,3]
[381847120,1756369212796,-200.0,0.00015068,3]
[381847123,1756369215093,-14.79613592,0.00015068,3]
[381847124,1756369215120,-251.0,0.00015068,2]
[381847125,1756369215146,-124.3189486,0.00015068,2]
[381847128,1756369217619,-244.82018802,0.00015068,2]
[381847148,1756369221921,-1200.0,0.00015068,2]
[381847149,1756369222528,-179.41941551,0.00015068,2]
[381847152,1756369229612,-666.0,0.00015068,2]
[381847153,1756369230583,-85.44144787,0.00015068,2]
[381847154,1756369230618,-150.0,0.00015568,3]
[381847222,1756369693665,-292.97956,0.00016694,2]
[381847223,1756369693687,-150.0,0.0001676,2]
[381847224,1756369693709,-500.0,0.00016761,2]
[381847225,1756369693731,-500.0,0.00016761,2]
[381847226,1756369693754,-500.0,0.00016761,2]
[381847227,1756369693775,-500.0,0.00016761,2]
[381847228,1756369693796,-500.0,0.00016761,2]
[381847229,1756369693816,-647.41527772,0.00016761,2]
[381847230,1756369693838,-500.0,0.00016761,2]
[381847231,1756369693857,-500.0,0.00016761,2]
[381847232,1756369693879,-500.0,0.00016761,2]
[381847233,1756369693904,-288.66891182,0.00016761,2]
[381847234,1756369693925,-500.0,0.00016761,2]
[381847235,1756369693948,-500.0,0.00016761,2]
[381847236,1756369693971,-370.93625046,0.00016761,2]
[381847237,1756369725155,-815.60958862,0.00029998,120]
[381847238,1756369725184,-372.0,0.0003,120]
[381847239,1756369726147,660.0,0.0003,120]
[381847240,1756369729385,569.35934962,0.000119,2]
[381847241,1756369783172,480.0592694,0.00030137,120]
[381847242,1756369803344,200.0,0.0003,120]
[381847243,1756369805488,-234.22521844,0.00015,2]
[381847245,1756369807382,-15.77478156,0.00015,2]
[381847260,1756369832088,-750.61749471,0.00016758,2]
[381847261,1756369832146,-249.38250529,0.00016758,2]
[381847262,1756369832159,-129.06374954,0.00016761,2]
[381847263,1756369832168,-499.99999999,0.00016761,2]
[381847264,1756369832177,-580.82071066,0.00016761,2]
[381847265,1756369832187,-303.7626565,0.00016761,2]
[381847266,1756369832196,-300.0,0.00016761,2]
[381847267,1756369832208,-300.0,0.00016761,2]
[381847268,1756369832223,-1200.0,0.00016761,2]
[381847269,1756369832242,-234.22521844,0.00016761,2]
[381847270,1756369832259,-321.6,0.00016865,2]
[381847271,1756369832269,-530.23,0.00016897,2]
[381847272,1756369832278,-1250.0,0.00016915,2]
[381847273,1756369832287,-846.42,0.00016998,2]
[381847274,1756369832296,-1006.32,0.00017015,2]
[381847275,1756369832305,-150.99,0.00017015,2]
[381847276,1756369832316,-150.0,0.00017194,3]
[381847277,1756369832326,-2751.0,0.00017355,2]
[381847278,1756369832335,-166.66,0.00017373,2]
[381847279,1756369832344,-5974.29,0.00017373,2]
[381847280,1756369832353,-5176.28,0.00017373,2]
[381847281,1756369832363,-9691.67,0.00017373,2]
[381847282,1756369832371,-9999.99,0.00017373,2]
[381847283,1756369832381,-160.0,0.00017386,7]
[381847284,1756369832390,-1500.0,0.00017397,2]
[381847285,1756369832399,-1250.0,0.00017421,2]
[381847286,1756369832409,-151.0,0.00017511,2]
[381847287,1756369832418,-151.0,0.00017511,2]
[381847288,1756369832427,-151.0,0.00017511,2]
[381847289,1756369832436,-151.0,0.00017511,2]
[381847290,1756369832446,-151.0,0.00017511,2]
[381847291,1756369832455,-151.0,0.00017511,2]
[381847292,1756369832464,-151.0,0.00017511,2]
[381847293,1756369832473,-151.0,0.00017511,2]
[381847294,1756369832482,-200.0,0.00017511,2]
[381847295,1756369832491,-151.0,0.00017511,2]
[381847296,1756369832500,-151.0,0.00017511,2]
[381847297,1756369832510,-151.0,0.00017511,2]
[381847298,1756369832519,-151.0,0.00017511,2]
[381847299,1756369832529,-151.0,0.00017511,2]
[381847300,1756369832538,-151.0,0.00017511,2]
[381847301,1756369832547,-151.0,0.00017511,2]
[381847302,1756369832557,-500.0,0.00017511,2]
[381847303,1756369832566,-500.0,0.00017511,2]
[381847304,1756369832575,-500.0,0.00017511,2]
[381847305,1756369832584,-500.0,0.00017511,2]
[381847306,1756369832593,-500.0,0.00017511,2]
[381847307,1756369832602,-500.0,0.00017511,2]
[381847308,1756369832611,-500.0,0.00017511,2]
[381847309,1756369832620,-600.0,0.00017511,2]
[381847310,1756369832629,-600.0,0.00017511,2]
[381847311,1756369832639,-600.0,0.00017511,2]
[381847312,1756369832648,-600.0,0.00017511,2]
[381847313,1756369832656,-600.0,0.00017511,2]
[381847314,1756369832665,-151.0,0.00017511,2]
[381847315,1756369832674,-600.0,0.00017511,2]
[381847316,1756369832683,-600.0,0.00017511,2]
[381847317,1756369832692,-600.0,0.00017511,2]
[381847318,1756369832701,-600.0,0.00017511,2]
[381847319,1756369832711,-546.9273979,0.00017511,2]
[381847320,1756369832720,-150.0,0.00017511,2]
[381847321,1756369832729,-150.0,0.00017511,2]
[381847322,1756369832738,-150.0,0.00017511,2]
[381847323,1756369832747,-150.0,0.00017511,2]
[381847324,1756369832756,-500.0,0.00017511,2]
[381847325,1756369832766,-266.72,0.00017521,2]
[381847326,1756369832775,-200.0,0.00017521,2]
[381847327,1756369832785,-2244.67,0.00017521,2]
[381847328,1756369832794,-500.0,0.00017566,2]
[381847329,1756369832803,-500.0,0.00017621,2]
[381847330,1756369832811,-500.0,0.00017676,2]
[381847331,1756369832820,-500.0,0.00017731,2]
[381847332,1756369832829,-150.0,0.00017785,2]
[381847333,1756369832838,-150.0,0.00017785,2]
[381847334,1756369832847,-200.0,0.00017785,2]
[381847335,1756369832856,-150.0,0.00017785,2]
[381847336,1756369832866,-566.54733801,0.00017785,2]
[381847337,1756369832875,-500.0,0.00017786,2]
[381847338,1756369832883,-180.67790141,0.00017799,2]
[381847339,1756369832893,-2000.0,0.000178,2]
[381847340,1756369832902,-300.0,0.000178,6]
[381847341,1756369832911,-323.70701949,0.000179,2]
[381847342,1756369832920,-796.98390813,0.000179,2]
[381847343,1756369832930,-700.0,0.000179,6]
[381847344,1756369832939,-2574.93021264,0.000179,2]
[381847345,1756369832948,-313.85285984,0.000179,2]
[381847346,1756369832958,-907.17126565,0.000179,2]
[381847347,1756369832967,-3078.1199956,0.00017909,2]
[381847348,1756369832976,-200.0,0.00017989,2]
[381847349,1756369832985,-200.0,0.00017989,2]
[381847350,1756369832994,-150.0,0.00017989,2]
[381847351,1756369833003,-200.0,0.00017989,2]
[381847352,1756369833011,-200.0,0.00017989,2]
[381847353,1756369833021,-200.0,0.00017989,2]
[381847354,1756369833030,-505.0,0.00017989,2]
[381847355,1756369833040,-200.0,0.00017989,2]
[381847356,1756369833050,-150.0,0.00017989,2]
[381847357,1756369833059,-200.0,0.00017989,2]
[381847358,1756369833068,-150.0,0.00017989,2]
[381847359,1756369833078,-150.0,0.00017989,2]
[381847360,1756369833088,-150.0,0.00017989,2]
[381847361,1756369833098,-3794.9499912,0.00017993,2]
[381847362,1756369833108,-2696.3281801,0.00017993,2]
[381847363,1756369833118,-8524.0553175,0.00017997,2]
[381847364,1756369833127,-400.0,0.00017999,2]
[381847365,1756369833136,-174.02,0.00017999,2]
[381847366,1756369833149,-400.0,0.00017999,2]
[381847367,1756369833158,-400.0,0.00017999,2]
[381847368,1756369833167,-400.0,0.00017999,2]
[381847369,1756369833177,-297.03607318,0.00017999,2]
[381847370,1756369833187,-570.96,0.00017999,2]
[381847371,1756369833196,-400.0,0.00017999,2]
[381847372,1756369833209,-171.53,0.00017999,2]
[381847373,1756369833220,-399.35,0.00017999,2]
[381847374,1756369833230,-400.0,0.00017999,2]
[381847375,1756369833240,-191.87681314,0.00017999,2]
[381847376,1756369833250,-400.0,0.00017999,2]
[381847377,1756369833260,-400.0,0.00017999,2]
[381847378,1756369833269,-400.0,0.00017999,2]
[381847379,1756369833279,-400.0,0.00017999,2]
[381847380,1756369833288,-342.21515474,0.00017999,2]
[381847381,1756369833298,-400.0,0.00017999,2]
[381847382,1756369833308,-1077.92,0.00017999,2]
[381847383,1756369833317,-400.0,0.00017999,2]
[381847384,1756369833327,-400.0,0.00017999,2]
[381847385,1756369833336,-400.0,0.00017999,2]
[381847386,1756369833346,-400.0,0.00017999,2]
[381847387,1756369833355,-400.0,0.00017999,2]
[381847388,1756369833365,-403.89411547,0.00017999,2]
[381847389,1756369833374,-170.79,0.00017999,2]
[381847390,1756369833383,-400.0,0.00017999,2]
[381847391,1756369833392,-400.0,0.00017999,2]
[381847392,1756369833403,-300.0,0.00017999,2]
[381847393,1756369833412,-278.55,0.00017999,2]
[381847394,1756369833421,-400.0,0.00017999,2]
[381847395,1756369833431,-400.0,0.00017999,2]
[381847396,1756369833440,-510.62,0.00017999,2]
[381847397,1756369833450,-400.0,0.00017999,2]
[381847398,1756369833460,-400.0,0.00017999,2]
[381847399,1756369833475,-400.0,0.00017999,2]
[381847400,1756369833486,-400.0,0.00017999,2]
[381847401,1756369833497,-400.0,0.00017999,2]
[381847402,1756369833508,-1132.46,0.00017999,2]
[381847403,1756369833519,-150.88711053,0.00017999,2]
[381847404,1756369833532,-718.39,0.00017999,2]
[381847405,1756369833543,-400.0,0.00017999,2]
[381847406,1756369833554,-400.0,0.00017999,2]
[381847407,1756369833565,-418.84560573,0.00017999,2]
[381847408,1756369833575,-638.71,0.00017999,2]
[381847409,1756369833585,-400.0,0.00017999,2]
[381847410,1756369833595,-400.0,0.00017999,2]
[381847411,1756369833605,-400.0,0.00017999,2]
[381847412,1756369833615,-400.0,0.00017999,2]
[381847413,1756369833626,-400.0,0.00017999,2]
[381847414,1756369833636,-400.0,0.00017999,2]
[381847415,1756369833646,-400.0,0.00017999,2]
[381847416,1756369833660,-506.59,0.00017999,2]
[381847417,1756369833671,-400.0,0.00017999,2]
[381847418,1756369833681,-400.0,0.00017999,2]
[381847419,1756369833692,-524.0,0.00017999,2]
[381847420,1756369833703,-483.22,0.00017999,2]
[381847421,1756369833713,-434.29,0.00017999,2]
[381847422,1756369833723,-419.44,0.00017999,2]
[381847423,1756369833733,-400.0,0.00017999,2]
[381847424,1756369833744,-400.0,0.00017999,2]
[381847425,1756369833755,-250.54784806,0.00017999,2]
[381847426,1756369833767,-400.0,0.00017999,2]
[381847427,1756369833777,-400.0,0.00017999,2]
[381847428,1756369833788,-400.0,0.00017999,2]
[381847429,1756369833798,-400.0,0.00017999,2]
[381847430,1756369833809,-2341.56,0.00017999,2]
[381847431,1756369833819,-400.0,0.00017999,2]
[381847432,1756369833830,-400.0,0.00017999,2]
[381847433,1756369833840,-400.0,0.00017999,2]
[381847434,1756369833850,-421.58,0.00017999,2]
[381847435,1756369833859,-400.0,0.00017999,2]
[381847436,1756369833869,-396.63255024,0.00018,2]
[381847437,1756369833879,-4361.61893072,0.00018,2]
[381847438,1756369833979,-347.73803412,0.00017372,2]
[381847439,1756369833990,-57.36036588,0.00018,2]
[381847440,1756369834003,-1500.0,0.00018,2]
[381847441,1756369834016,-1817.1182122,0.00018,2]
[381847444,1756369838130,-349.71280864,0.0001676,2]
[381847445,1756369838140,-420.96321242,0.0001676,2]
[381847446,1756369838152,-108.35572142,0.0001799,2]
[381847447,1756369838166,-64.17236129,0.0001799,2]
[381847448,1756369838177,-1134.51,0.00017999,2]
[381847449,1756369838187,-12015.24003871,0.00018,2]
[381847450,1756369838205,-13136.06143168,0.00018,2]
[381847451,1756369838215,-1189.89765071,0.00018,2]
[381847452,1756369838227,-348325.3998163,0.00018,2]
[381847453,1756369838238,-1842.40025198,0.00018,2]
[381847454,1756369838248,-1167.20247316,0.00018,2]
[381847455,1756369838261,-782.64,0.00018,2]
[381847456,1756369838271,-4490.5937865,0.00018,2]
[381847457,1756369838282,-152.0,0.00018,2]
[381847458,1756369838292,-1221.0,0.00018,2]
[381847459,1756369838303,-1221.0,0.00018,2]
[381847460,1756369838313,-1221.0,0.00018,2]
[381847461,1756369838324,-1221.0,0.00018,2]
[381847462,1756369838334,-1221.0,0.00018,2]
[381847463,1756369838344,-1221.0,0.00018,2]
[381847464,1756369838355,-1221.0,0.00018,2]
[381847465,1756369838366,-824263.32644398,0.00018,2]
[381847466,1756369838376,-152.0,0.00018,2]
[381847467,1756369838387,-152.0,0.00018,2]
[381847468,1756369838397,-152.0,0.00018,2]
[381847469,1756369838407,-152.0,0.00018,2]
[381847470,1756369838418,-152.0,0.00018,2]
[381847471,1756369838428,-152.0,0.00018,2]
[381847472,1756369838438,-152.0,0.00018,2]
[381847473,1756369838448,-2526.69806,0.00018,2]
[381847474,1756369838458,-204906.76349382,0.00018,2]
[381847475,1756369838468,-1375268.70625242,0.00018,2]
[381847476,1756369838477,-1007.27750725,0.00018,2]
[381847477,1756369838487,-314.563357,0.00018,2]
[381847478,1756369838498,-314.563357,0.00018,2]
[381847479,1756369838512,-314.563357,0.00018,2]
[381847480,1756369838523,-314.563357,0.00018,2]
[381847483,1756369838533,-151.0,0.00018,2]
[381847485,1756369838543,-151.0,0.00018,2]
[381847487,1756369838553,-151.0,0.00018,2]
[381847489,1756369838562,-151.0,0.00018,2]
[381847491,1756369838572,-151.0,0.00018,2]
[381847493,1756369838583,-262.915017,0.00018,2]
[381847496,1756369838592,-722.394178,0.00018,2]
[381847498,1756369838602,-151.0,0.00018059,2]
[381847499,1756369838612,-150.0,0.00018059,2]
[381847501,1756369838622,-225.81333308,0.00018059,2]
[381847503,1756369838631,-200.0,0.00018059,2]
[381847505,1756369838642,-500.0,0.00018073,2]
[381847507,1756369838651,-151.0,0.00018084,2]
[381847509,1756369838661,-1745.62449962,0.000181,2]
[381847511,1756369838671,-150.0,0.00018103,2]
[381847513,1756369838680,-500.0,0.00018173,2]
[381847515,1756369838690,-500.0,0.00018173,2]
[381847517,1756369838700,-2333.60717033,0.000182,2]
[381847519,1756369838710,-183.7665289,0.00018263,2]
[381847521,1756369838720,-505.0,0.00018263,2]
[381847523,1756369838729,-150.0,0.00018263,2]
[381847525,1756369838739,-150.0,0.00018263,2]
[381847527,1756369838749,-150.0,0.00018263,2]
[381847530,1756369838759,-150.0,0.00018263,2]
[381847532,1756369838769,-400.0,0.00018273,2]
[381847534,1756369838780,-400.0,0.00018273,2]
[381847536,1756369838790,-400.0,0.00018273,2]
[381847538,1756369838800,-302.8874995,0.00018273,2]
[381847540,1756369838810,-570.96,0.00018273,2]
[381847542,1756369838819,-191.2,0.00018273,2]
[381847544,1756369838829,-400.0,0.00018273,2]
[381847546,1756369838839,-400.0,0.00018273,2]
[381847548,1756369838851,-400.0,0.00018273,2]
[381847550,1756369838860,-400.0,0.00018273,2]
[381847552,1756369838870,-400.0,0.00018273,2]
[381847554,1756369838880,-400.0,0.00018273,2]
[381847556,1756369838890,-1077.92,0.00018273,2]
[381847558,1756369838900,-400.0,0.00018273,2]
[381847560,1756369838909,-400.0,0.00018273,2]
[381847562,1756369838919,-400.0,0.00018273,2]
[381847564,1756369838929,-442.34,0.00018273,2]
[381847566,1756369838938,-400.0,0.00018273,2]
[381847568,1756369838948,-388.06499729,0.00018273,2]
[381847570,1756369838958,-400.0,0.00018273,2]
[381847572,1756369838968,-400.0,0.00018273,2]
[381847574,1756369838977,-400.0,0.00018273,2]
[381847576,1756369838987,-510.62,0.00018273,2]
[381847578,1756369838997,-400.0,0.00018273,2]
[381847580,1756369839007,-415.46,0.00018273,2]
[381847582,1756369839017,-400.0,0.00018273,2]
[381847584,1756369839027,-400.0,0.00018273,2]
[381847586,1756369839036,-400.0,0.00018273,2]